Cogmind - Beta 16.1 @@@ ROGUE MODE // 2026.01.24 @ 14:33:13 Player: szymekc Result: Escaped! Performance ------------- Evolutions (9) 4500 Regions Visited (14) 2800 Robots Destroyed (0) 0 Value Destroyed (20) 20 Prototype IDs (7) 140 Alien Tech Used (0) 0 Bonus (27400) 27400 TOTAL SCORE: 34860 Bonus ------- Pacifist 10669 Entered DSFs 1000 Aligned with FarCom 300 Win 3000 Win Speed 12431 Cogmind --------- Core Integrity 809/1600 Matter 99/300 Energy 148/150 System Corruption 3% Temperature Cool (4) Movement Flying (29) Location To Epsilon Eridani Parts ------- > --- POWER (2) -------- Micro Antimatter Reactor > --- PROPULSION (12) -- Impulse Thruster Array Experimental Q-thruster > --- UTILITY (9) ------ Terrain Scanner Terrain Scan Processor Advanced Terrain Scan Processor Hacking Suite System Shield Experimental System Shield > --- WEAPON (2) ------- Thunder Hammer > --- INVENTORY (5) ---- Focal Shield Power Maul Peak State ------------ > --- POWER ------------ Quantum Reactor Improved Quantum Reactor > --- PROPULSION ------- Nuclear Pulse Array Impulse Thruster Field Propulsion Array Field Propulsion Array Improved Diametric Drive Impulse Thruster Array Impulse Thruster Array > --- UTILITY ---------- Terrain Scanner Terrain Scan Processor Cloaking Device Improved Cloaking Device Improved Propulsion Shielding Focal Shield Hacking Suite System Shield Experimental System Shield > --- WEAPON ----------- Thunder Hammer > --- INVENTORY -------- Light Quantum Reactor Impulse Thruster Array Power Maul [Rating: 153] Favorites ----------- Power Light Particle Reactor Engine Light Ion Engine Power Core Light Fission Core Reactor Light Particle Reactor Propulsion Surge Thruster Flight Unit Surge Thruster Utility Terrain Scan Processor Device Advanced ECM Suite Processor Terrain Scan Processor Hackware System Shield Protection Improved Medium Armor Plating Weapon Backup Laser VII Energy Gun Backup Laser VII Energy Cannon Improved EM Pulse Cannon Ballistic Gun Coil Gun Impact Weapon Thunder Hammer Special Melee Weapon Advanced Datajack Build | -11 -10 -10 -10 -9 -8 -7 -6 -5 -4 -4 -3 -2 -2 -1 ------- Run | Yrd Mat Min Exi Min Mat Fac Fac Fac Fac DSF Res Res DSF Acc Slots Evolved 18 | . . . . . 4 2 2 2 2 . 2 2 . 2 Power 1 | . . . . . . . . 1 . . . . . . Propulsion 10 | . . . . . 2 1 1 1 1 . . 2 . 2 Utility 7 | . . . . . 2 1 1 . 1 . 2 . . . Weapon . | . . . . . . . . . . . . . . . Parts Attached 60 | 1 1 . . . 10 8 3 . . . 11 3 4 19 Power 9 | 1 . . . . . . 1 . . . 2 . . 5 Engine 1 | 1 . . . . . . . . . . . . . . Core 1 | . . . . . . . 1 . . . . . . . Reactor 7 | . . . . . . . . . . . 2 . . 5 Propulsion 23 | . 1 . . . 5 2 . . . . 5 1 3 6 Treads . | . . . . . . . . . . . . . . . Leg . | . . . . . . . . . . . . . . . Wheel . | . . . . . . . . . . . . . . . Hover . | . . . . . . . . . . . . . . . Flight 23 | . 1 . . . 5 2 . . . . 5 1 3 6 Utility 24 | . . . . . 5 5 1 . . . 4 1 1 7 Device 10 | . . . . . . 1 1 . . . 2 1 1 4 Storage . | . . . . . . . . . . . . . . . Processor 7 | . . . . . 4 2 . . . . . . . 1 Hackware 5 | . . . . . 1 1 . . . . 2 . . 1 Protection 2 | . . . . . . 1 . . . . . . . 1 Artifact . | . . . . . . . . . . . . . . . Weapon 4 | . . . . . . 1 1 . . . . 1 . 1 Energy Gun . | . . . . . . . . . . . . . . . Energy Cannon 1 | . . . . . . 1 . . . . . . . . Ballistic Gun 1 | . . . . . . . 1 . . . . . . . Ballistic Cannon . | . . . . . . . . . . . . . . . Launcher . | . . . . . . . . . . . . . . . Special Weapon . | . . . . . . . . . . . . . . . Impact Weapon 1 | . . . . . . . . . . . . . . 1 Slashing Weapon . | . . . . . . . . . . . . . . . Piercing Weapon . | . . . . . . . . . . . . . . . Special Melee Weapon 1 | . . . . . . . . . . . . 1 . . Unidentified Prototypes 7 | . . . . . . 1 . . . . 2 . . 4 Parts Lost 37 | . . . . . 4 2 . . . 4 4 . 4 19 Power 7 | . . . . . . . . . . 1 1 . 1 4 Propulsion 19 | . . . . . 3 2 . . . 2 2 . 1 9 Utility 9 | . . . . . 1 . . . . 1 1 . 1 5 Weapon 2 | . . . . . . . . . . . . . 1 1 Highest Loss Streak 10 | . . . . . 3 1 . . . 4 2 . 4 10 To Critical Strikes . | . . . . . . . . . . . . . . . Average Backups 2 | . . . . . . 1 2 4 5 5 4 1 1 2 Power . | . . . . . . . . . . . . . . . Propulsion . | . . . . . . . . . . . . . . 1 Utility . | . . . . . . 1 1 2 3 3 1 . . . Weapon . | . . . . . . . 1 2 2 2 1 1 1 1 Tool/Special . | . . . . . . . . . . . . . . . Unused Backups 3 | . . . . . . . . . . . . . 2 1 Power . | . . . . . . . . . . . . . . . Propulsion 2 | . . . . . . . . . . . . . 2 . Utility . | . . . . . . . . . . . . . . . Weapon 1 | . . . . . . . . . . . . . . 1 Tool/Special . | . . . . . . . . . . . . . . . Average Slot Usage (%) 51 | . 24 28 28 28 29 55 58 52 47 39 44 67 70 63 Engine 1 | . 14 14 14 14 4 . . . . . . . 1 . Core 1 | . . . . . . . 4 5 5 2 1 . . . Reactor 2 | . . . . . . . . . . . 2 4 4 6 Flight 19 | . 10 14 14 14 10 28 20 17 15 12 11 26 26 24 Device 6 | . . . . . . 5 6 5 5 3 6 10 14 10 Processor 9 | . . . . . 12 13 13 11 10 10 9 8 8 7 Hackware 6 | . . . . . 2 5 6 5 5 5 7 8 8 10 Protection 1 | . . . . . . 1 6 5 5 3 . . . . Peak Build Rating 153 | 1 2 2 2 2 18 29 38 34 34 34 104 106 113 153 Average Rating 57 | . 1 2 2 2 10 23 31 33 34 24 59 102 107 128 On Entrance 31 | . 1 2 2 2 2 6 27 33 34 34 15 91 106 111 Avg Prop Armor Cover (%) 12 | . . . . . . 14 3 . . . 15 . . 9 Naked Turns 8 | . . . . . 8 . . . . . . . . . Heaviest Build 49 | 3 3 3 3 3 3 8 15 15 15 15 41 29 29 49 Greatest Support 89 | 3 4 4 4 4 12 15 15 15 15 15 55 65 72 89 Greatest Overweight (x) . | . . . . . . . . . . . . . . . Average Overweight (x) . | . . . . . . . . . . . . . . . Largest Inventory Capacity 5 | 5 5 5 5 5 5 5 5 5 5 5 5 5 5 5 Average Capacity 5 | 5 5 5 5 5 5 5 5 5 5 5 5 5 5 5 Most Carried 5 | . . . . . 1 2 4 5 5 5 5 1 5 5 Average Carried 2 | . . . . . . 1 2 4 5 5 4 1 3 3 Final Capacity 5 | 5 5 5 5 5 5 5 5 5 5 5 5 5 5 5 Final Carried 5 | . . . . . 1 2 4 5 5 5 3 1 5 2 Class Distribution -------------------- 37% | Scout 20% | Hacker-Sprinter 17% | Mutant 9% | Hacker-Scout 6% | Hacker-Ninja 4% | Hacker-Mutant 4% | Sprinter Dominant Class ---------------- Mutant | -10/Materials Mutant | -10/Mines Mutant | -10/Exiles Mutant | -9/Mines Mutant | -8/Materials Scout | -7/Factory Scout | -6/Factory Scout | -5/Factory Scout | -4/Factory Scout | -4/DSF Hacker-Mutant | -3/Research Hacker-Sprinter | -2/Research Hacker-Sprinter | -2/DSF Hacker-Scout | -1/Access Resources | -11 -10 -10 -10 -9 -8 -7 -6 -5 -4 -4 -3 -2 -2 -1 ----------- Run | Yrd Mat Min Exi Min Mat Fac Fac Fac Fac DSF Res Res DSF Acc Matter Collected 512 | 174 . 46 . . 33 101 64 . . . . . . 94 Remotely . | . . . . . . . . . . . . . . . Salvage Created . | . . . . . . . . . . . . . . . Parts . | . . . . . . . . . . . . . . . Haulers Intercepted . | . . . . . . . . . . . . . . . Recyclers Shooed . | . . . . . . . . . . . . . . . Parts Field Recycled . | . . . . . . . . . . . . . . . Retrieved Matter . | . . . . . . . . . . . . . . . Parts Self-Destructed . | . . . . . . . . . . . . . . . Prevented . | . . . . . . . . . . . . . . . Parts Restored . | . . . . . . . . . . . . . . . Kills | -11 -10 -10 -10 -9 -8 -7 -6 -5 -4 -4 -3 -2 -2 -1 ------- Run | Yrd Mat Min Exi Min Mat Fac Fac Fac Fac DSF Res Res DSF Acc Combat Hostiles Destroyed . | . . . . . . . . . . . . . . . Classes Destroyed . | . . . . . . . . . . . . . . . Best Kill Streak . | . . . . . . . . . . . . . . . Combat Bots Only . | . . . . . . . . . . . . . . . Max Kills in Single Turn . | . . . . . . . . . . . . . . . Gunslinging . | . . . . . . . . . . . . . . . Exploded . | . . . . . . . . . . . . . . . Melee . | . . . . . . . . . . . . . . . Uniques/NPCs Destroyed . | . . . . . . . . . . . . . . . Combat | -11 -10 -10 -10 -9 -8 -7 -6 -5 -4 -4 -3 -2 -2 -1 -------- Run | Yrd Mat Min Exi Min Mat Fac Fac Fac Fac DSF Res Res DSF Acc Hostile Shots Fired 449 | . 14 2 . 10 52 29 14 . . 18 62 . 6 242 Missed 235 | . 10 1 . 5 25 18 10 . . 8 32 . 3 123 Hits 214 | . 4 1 . 5 27 11 4 . . 10 30 . 3 119 Melee 17 | . . . . . 11 . . . . 5 1 . . . Projectile 197 | . 4 1 . 5 16 11 4 . . 5 29 . 3 119 AOE 5 | . . . . . 2 . . . . 1 . . . 2 Critical Strikes 16 | . . . . . 9 . . . . 2 3 . . 2 Part Disruptions 1 | . . . . . . . . . . . 1 . . . Damage Taken 5264 | . 32 10 . 41 526 83 57 . . 493 593 58 273 3098 Core 1592 | . 16 10 . 24 362 22 16 . . 245 77 29 . 791 Absorbed by Shields 54 | . . . . . . . . . . 54 . . . . Redirected to Shielding 101 | . . . . . . . . . . . . . . 101 Ignored by Resistances 73 | . . . . . . . . . . . . . . 73 Core Remaining (%) 82 | 100 . . . 80 34 96 98 100 . 78 94 . 98 50 Volleys Fired 1 | . . . . . . 1 . . . . . . . . Largest 1 | . . . . . . 1 . . . . . . . . Hottest 69 | . . . . . . 69 . . . . . . . . Shots Fired 1 | . . . . . . 1 . . . . . . . . Gun . | . . . . . . . . . . . . . . . Cannon 1 | . . . . . . 1 . . . . . . . . Launcher . | . . . . . . . . . . . . . . . Special . | . . . . . . . . . . . . . . . Kinetic . | . . . . . . . . . . . . . . . Thermal . | . . . . . . . . . . . . . . . Explosive . | . . . . . . . . . . . . . . . Electromagnetic 1 | . . . . . . 1 . . . . . . . . Robot Hit Streak . | . . . . . . . . . . . . . . . Robot Miss Streak . | . . . . . . . . . . . . . . . Penetration Max . | . . . . . . . . . . . . . . . Secondary Targets . | . . . . . . . . . . . . . . . Shots Hit Robots 2 | . . . . . . . . . . . . 1 . 1 Core Hits . | . . . . . . . . . . . . . . . Critical Kills . | . . . . . . . . . . . . . . . Critical Parts Destroyed . | . . . . . . . . . . . . . . . Critical Strikes . | . . . . . . . . . . . . . . . Melee Attacks 3 | . . . . . . . . . . . . 1 . 2 Impact 1 | . . . . . . . . . . . . . . 1 Slashing . | . . . . . . . . . . . . . . . Piercing . | . . . . . . . . . . . . . . . Sneak Attacks 2 | . . . . . . . . . . . . 1 . 1 Combat Hostiles . | . . . . . . . . . . . . . . . Follow-up Attacks . | . . . . . . . . . . . . . . . Damage Inflicted 82 | . . . . . 7 . . . . . . . . 75 Guns . | . . . . . . . . . . . . . . . Cannons . | . . . . . . . . . . . . . . . Explosions 75 | . . . . . . . . . . . . . . 75 Melee . | . . . . . . . . . . . . . . . Ramming 7 | . . . . . 7 . . . . . . . . . Kinetic . | . . . . . . . . . . . . . . . Thermal 75 | . . . . . . . . . . . . . . 75 Explosive . | . . . . . . . . . . . . . . . Electromagnetic . | . . . . . . . . . . . . . . . Impact . | . . . . . . . . . . . . . . . Slashing . | . . . . . . . . . . . . . . . Piercing . | . . . . . . . . . . . . . . . Highest Corruption 3 | . . . . . . . . . . . . . . 3 Average Corruption 1 | . . . . . . . . . . . . . . 1 Corruption Purged . | . . . . . . . . . . . . . . . Corruption Blocked . | . . . . . . . . . . . . . . . Effects 1 | . . . . . . . . . . . . . . 1 Matter Fused 1 | . . . . . . . . . . . . . . 1 Overload Shots . | . . . . . . . . . . . . . . . Overflow Damage 11 | . . . . . . . . . . . . . . 11 Projectiles . | . . . . . . . . . . . . . . . Explosions 11 | . . . . . . . . . . . . . . 11 Melee . | . . . . . . . . . . . . . . . Knockbacks . | . . . . . . . . . . . . . . . Impact . | . . . . . . . . . . . . . . . Kinetic . | . . . . . . . . . . . . . . . Secondary . | . . . . . . . . . . . . . . . Self-Inflicted Damage 116 | . . . . . 3 . . . . . . . . 113 Shots 1 | . . . . . . . . . . . . . . 1 Rammed 1 | . . . . . 1 . . . . . . . . . Targets Rammed 1 | . . . . . 1 . . . . . . . . . Kicked . | . . . . . . . . . . . . . . . Crushed . | . . . . . . . . . . . . . . . Highest Temperature 254 | . . . . . 34 4 . . . . . . . 254 Average Temperature 64 | . . . . . 19 3 . . . . . . . 65 Received Heat Transfer 393 | . . 6 . . 90 27 . . . . 81 . . 189 Effects 4 | . . . . . . . . . . . . . . 4 Energy Bleed 1 | . . . . . . . . . . . . . . 1 Interference 3 | . . . . . . . . . . . . . . 3 Siege Activations . | . . . . . . . . . . . . . . . Martial Activations . | . . . . . . . . . . . . . . . Shielding Activations . | . . . . . . . . . . . . . . . Robots Disrupted . | . . . . . . . . . . . . . . . Combat Hostiles . | . . . . . . . . . . . . . . . Robots Corrupted . | . . . . . . . . . . . . . . . Combat Hostiles . | . . . . . . . . . . . . . . . Parts Fried . | . . . . . . . . . . . . . . . Impact Corruptions . | . . . . . . . . . . . . . . . Robots Melted . | . . . . . . . . . . . . . . . Combat Hostiles . | . . . . . . . . . . . . . . . Parts Melted . | . . . . . . . . . . . . . . . Heat Transferred 50 | . . . . . . . . . . . . . . 50 Parts Sabotaged . | . . . . . . . . . . . . . . . Parts Stolen . | . . . . . . . . . . . . . . . Parts Stripped . | . . . . . . . . . . . . . . . Power Chain Reactions . | . . . . . . . . . . . . . . . Alert | -11 -10 -10 -10 -9 -8 -7 -6 -5 -4 -4 -3 -2 -2 -1 ------- Run | Yrd Mat Min Exi Min Mat Fac Fac Fac Fac DSF Res Res DSF Acc Maximum Alert Level 2 | . . . . . . . . . . . . . . 2 Low Security (%) 95 | 100 100 100 . 100 100 100 100 100 100 100 100 100 100 81 Level 1 2 | . . . . . . . . . . . . . . 10 Level 2 2 | . . . . . . . . . . . . . . 8 Level 3 . | . . . . . . . . . . . . . . . Level 4 . | . . . . . . . . . . . . . . . Level 5 . | . . . . . . . . . . . . . . . High Security . | . . . . . . . . . . . . . . . Max Security . | . . . . . . . . . . . . . . . Peak Influence 583 | . . 30 . . 15 43 50 24 . . 80 48 36 583 Initial 36 | . . . . . . . . 24 . . . 9 36 . Average 32 | . . 2 . . 1 8 5 6 . . 29 23 10 94 Influence Increases 1275 | . . 30 . . 15 103 60 . . . 147 59 . 861 Successful Hack 81 | . . . . . . 28 . . . . 27 14 . 12 Disable Machine 30 | . . . . . . 15 . . . . . . . 15 Destroy Structure 39 | . . . . . . . . . . . . . . 39 Partial Spotted 150 | . . . . . . 30 . . . . 30 45 . 45 Lose Combat Pursuer 975 | . . 30 . . 15 30 60 . . . 90 . . 750 Influence Decreases 730 | . . . 30 . 15 103 10 50 . . 129 29 48 316 Entered New Map 77 | . . . 30 . . . . 26 . . . 9 12 . Time Decay 402 | . . . . . 10 93 10 24 . . 89 20 . 156 Lost Part 251 | . . . . . 5 10 . . . . 40 . 36 160 Squads Dispatched 27 | . . . . . 2 3 1 1 . 1 7 . . 12 Investigation 5 | . . . . . . 1 . . . . . . . 4 Extermination 8 | . . . . . . 1 . . . . 2 . . 5 Reinforcement 14 | . . . . . 2 1 1 1 . 1 5 . . 3 Assault . | . . . . . . . . . . . . . . . Garrison . | . . . . . . . . . . . . . . . Intercept . | . . . . . . . . . . . . . . . Searches Triggered . | . . . . . . . . . . . . . . . Construction Impeded 1 | . . . . . . . . . . . . . . 1 Haulers Reinforced . | . . . . . . . . . . . . . . . Active Scanning Responses . | . . . . . . . . . . . . . . . Cargo Convoy Interrupts . | . . . . . . . . . . . . . . . Stealth | -11 -10 -10 -10 -9 -8 -7 -6 -5 -4 -4 -3 -2 -2 -1 --------- Run | Yrd Mat Min Exi Min Mat Fac Fac Fac Fac DSF Res Res DSF Acc Distress Signals 3 | . . . . . . . . . . . 2 . . 1 Communications Jammed . | . . . . . . . . . . . . . . . Distress Signals . | . . . . . . . . . . . . . . . Times Spotted 166 | . 4 2 . 4 16 8 8 2 . 3 29 1 2 87 Peak Tracking Total 22 | . 4 2 . 4 13 4 4 1 . 3 15 1 1 22 Tactical Retreats 24 | . . 1 . . 1 1 2 . . . 3 . 1 15 ECM-based Alert Blocks 23 | . . . . . . . . . . . 6 . 1 16 Traps | -11 -10 -10 -10 -9 -8 -7 -6 -5 -4 -4 -3 -2 -2 -1 ------- Run | Yrd Mat Min Exi Min Mat Fac Fac Fac Fac DSF Res Res DSF Acc Traps Triggered 8 | . . . . . . 1 . . . 2 2 1 1 1 Indirectly . | . . . . . . . . . . . . . . . Trap Hack Attempts . | . . . . . . . . . . . . . . . Triggered . | . . . . . . . . . . . . . . . Disarmed . | . . . . . . . . . . . . . . . Reprogrammed . | . . . . . . . . . . . . . . . Reused . | . . . . . . . . . . . . . . . Traps Extracted . | . . . . . . . . . . . . . . . Installed . | . . . . . . . . . . . . . . . Triggered . | . . . . . . . . . . . . . . . Machines | -11 -10 -10 -10 -9 -8 -7 -6 -5 -4 -4 -3 -2 -2 -1 ---------- Run | Yrd Mat Min Exi Min Mat Fac Fac Fac Fac DSF Res Res DSF Acc Machines Disabled 2 | . . . . . . 1 . . . . . . . 1 Max in Single Turn 1 | . . . . . . 1 . . . . . . . 1 Garrison Access 1 | . . . . . 1 . . . . . . . . . Energy Cycler 1 | . . . . . . . . . . . . . . 1 Machines Repaired . | . . . . . . . . . . . . . . . Machines Dismantled . | . . . . . . . . . . . . . . . Machines Sabotaged . | . . . . . . . . . . . . . . . Overloaded Fab Kills . | . . . . . . . . . . . . . . . Hacking | -11 -10 -10 -10 -9 -8 -7 -6 -5 -4 -4 -3 -2 -2 -1 --------- Run | Yrd Mat Min Exi Min Mat Fac Fac Fac Fac DSF Res Res DSF Acc Machines Accessed 23 | . 1 . . . 1 3 2 2 1 . 3 2 . 8 Terminals 19 | . 1 . . . . 3 2 2 1 . 2 1 . 7 Fabricators . | . . . . . . . . . . . . . . . Repair Stations 3 | . . . . . . . . . . . 1 1 . 1 Recycling Units . | . . . . . . . . . . . . . . . Scanalyzers . | . . . . . . . . . . . . . . . Garrison Access 1 | . . . . . 1 . . . . . . . . . Total Hacks 50 | . 1 . . . 2 7 4 5 1 . 6 3 . 21 Successful 12 | . . . . . 1 2 2 . 1 . 2 2 . 2 Failed 38 | . 1 . . . 1 5 2 5 . . 4 1 . 19 Catastrophic 17 | . 1 . . . . 3 2 2 . . . . . 9 Database Lockouts . | . . . . . . . . . . . . . . . Manual 28 | . . . . . . 4 3 5 . . 4 . . 12 Terminals 44 | . 1 . . . . 7 4 5 1 . 5 2 . 19 Fabricators . | . . . . . . . . . . . . . . . Repair Stations 4 | . . . . . . . . . . . 1 1 . 2 Recycling Units . | . . . . . . . . . . . . . . . Scanalyzers . | . . . . . . . . . . . . . . . Garrison Access 2 | . . . . . 2 . . . . . . . . . Terminal Hacks 6 | . . . . . . 1 1 . 1 . 1 1 . 1 Open DSF 2 | . . . . . . . . . 1 . . 1 . . Emergency Access Points 1 | . . . . . . . . . . . 1 . . . Terminal Index 1 | . . . . . . 1 . . . . . . . . Locate Traps 1 | . . . . . . . . . . . . . . 1 Zone Layout 1 | . . . . . . . 1 . . . . . . . Fabricator Hacks . | . . . . . . . . . . . . . . . Repair Station Hacks 2 | . . . . . . . . . . . 1 1 . . Refit 2 | . . . . . . . . . . . 1 1 . . Recycling Unit Hacks . | . . . . . . . . . . . . . . . Scanalyzer . | . . . . . . . . . . . . . . . Garrison Access Hacks 1 | . . . . . 1 . . . . . . . . . Seal Access 1 | . . . . . 1 . . . . . . . . . Unauthorized Hacks 3 | . . . . . . 1 1 . . . . . . 1 Terminals 3 | . . . . . . 1 1 . . . . . . 1 Botnet 3 | . . . . . . 1 1 . . . . . . 1 Fabricators . | . . . . . . . . . . . . . . . Repair Stations . | . . . . . . . . . . . . . . . Recycling Units . | . . . . . . . . . . . . . . . Scanalyzers . | . . . . . . . . . . . . . . . Garrison Access . | . . . . . . . . . . . . . . . Data Cores Recovered . | . . . . . . . . . . . . . . . Used . | . . . . . . . . . . . . . . . Hacking Detections 18 | . 1 . . . . 3 2 2 . . 2 . . 8 Full Trace Events 4 | . . . . . . . . . . . . . . 4 Feedback Events . | . . . . . . . . . . . . . . . Feedback Blocked . | . . . . . . . . . . . . . . . Robot Schematics Acquired . | . . . . . . . . . . . . . . . Robots Built . | . . . . . . . . . . . . . . . Authchips . | . . . . . . . . . . . . . . . Time . | . . . . . . . . . . . . . . . Total Robot Build Rating . | . . . . . . . . . . . . . . . Part Schematics Acquired . | . . . . . . . . . . . . . . . Parts Built . | . . . . . . . . . . . . . . . Authchips . | . . . . . . . . . . . . . . . Time . | . . . . . . . . . . . . . . . Total Part Build Rating . | . . . . . . . . . . . . . . . Part Studies Acquired . | . . . . . . . . . . . . . . . Parts Repaired . | . . . . . . . . . . . . . . . Time . | . . . . . . . . . . . . . . . Parts Recycled . | . . . . . . . . . . . . . . . Recycled Matter . | . . . . . . . . . . . . . . . Retrieved Matter . | . . . . . . . . . . . . . . . Retrieved Components . | . . . . . . . . . . . . . . . Parts Scanalyzed . | . . . . . . . . . . . . . . . Part Schematics Acquired . | . . . . . . . . . . . . . . . Parts Damaged . | . . . . . . . . . . . . . . . Bothacking | -11 -10 -10 -10 -9 -8 -7 -6 -5 -4 -4 -3 -2 -2 -1 ------------ Run | Yrd Mat Min Exi Min Mat Fac Fac Fac Fac DSF Res Res DSF Acc Used RIF Installer . | . . . . . . . . . . . . . . . Robots Hacked 1 | . . . . . . . . . . . . 1 . . Non-combat 1 | . . . . . . . . . . . . 1 . . Combat . | . . . . . . . . . . . . . . . Robot Hacks Applied 1 | . . . . . . . . . . . . 1 . . parse_system 1 | . . . . . . . . . . . . 1 . . Relay Couplers Released . | . . . . . . . . . . . . . . . Fabnet Peak Effective % . | . . . . . . . . . . . . . . . Robots Rewired . | . . . . . . . . . . . . . . . Allies Hacked . | . . . . . . . . . . . . . . . Hacks Repelled . | . . . . . . . . . . . . . . . Allies | -11 -10 -10 -10 -9 -8 -7 -6 -5 -4 -4 -3 -2 -2 -1 -------- Run | Yrd Mat Min Exi Min Mat Fac Fac Fac Fac DSF Res Res DSF Acc Total Allies . | . . . . . . . . . . . . . . . Largest Group . | . . . . . . . . . . . . . . . Highest-Rated Group . | . . . . . . . . . . . . . . . Highest-Rated Ally . | . . . . . . . . . . . . . . . Total Orders . | . . . . . . . . . . . . . . . Ally Attacks . | . . . . . . . . . . . . . . . Total Damage . | . . . . . . . . . . . . . . . Kills . | . . . . . . . . . . . . . . . Allies Corrupted . | . . . . . . . . . . . . . . . Allies Melted . | . . . . . . . . . . . . . . . Intel | -11 -10 -10 -10 -9 -8 -7 -6 -5 -4 -4 -3 -2 -2 -1 ------- Run | Yrd Mat Min Exi Min Mat Fac Fac Fac Fac DSF Res Res DSF Acc Active Infowar (turns) 900 | . . . . . . 12 141 119 8 25 122 4 40 429 Sensors 12 | . . . . . . 12 . . . . . . . . Terrain 529 | . . . . . . . 141 119 8 25 . . . 236 Cloaking 257 | . . . . . . . . . . . . . . 257 Jamming 130 | . . . . . . . . . . . . . 35 95 ECM 243 | . . . . . . . . . . . 122 4 23 94 Robot Analysis Total . | . . . . . . . . . . . . . . . Derelict Logs Recovered . | . . . . . . . . . . . . . . . Drone Launches . | . . . . . . . . . . . . . . . Drone Recoveries . | . . . . . . . . . . . . . . . Exploration | -11 -10 -10 -10 -9 -8 -7 -6 -5 -4 -4 -3 -2 -2 -1 ------------- Run | Yrd Mat Min Exi Min Mat Fac Fac Fac Fac DSF Res Res DSF Acc Turns Passed 1720 | 14 30 29 62 31 106 326 187 119 8 33 261 45 40 429 Spaces Moved 5138 | 23 71 73 154 76 226 920 572 391 25 62 695 184 101 1565 Core 71 | 23 4 . . . 44 . . . . . . . . . Treads . | . . . . . . . . . . . . . . . Legs . | . . . . . . . . . . . . . . . Wheels . | . . . . . . . . . . . . . . . Hover . | . . . . . . . . . . . . . . . Flight 5067 | . 67 73 154 76 182 920 572 391 25 62 695 184 101 1565 Fastest Speed 20 | 50 40 40 40 40 20 29 30 30 30 30 25 22 22 21 Average Speed 29 | 50 40 40 40 40 38 32 30 30 30 32 32 22 22 24 Slowest Speed 50 | 50 50 40 40 40 50 35 32 30 30 35 37 22 25 31 Overloaded Moves 10 | . . . . . 10 . . . . . . . . . Propulsion Burnouts . | . . . . . . . . . . . . . . . Robots Hopped 98 | . 3 . . 1 10 8 10 5 . 1 21 1 . 38 Potential Cave-ins . | . . . . . . . . . . . . . . . Cave-ins Triggered . | . . . . . . . . . . . . . . . Exploration Rate (%) 30 | 4 22 21 53 23 30 27 16 14 1 82 28 5 92 42 Regions Visited 14 Branch Regions 3 Pre-discovered Areas . | . . . . . . . . . . . . . . . Known Exits Taken 6 | . . . . . . 1 1 1 1 . 1 1 . . Unknown Exits Taken 6 | 1 1 1 1 1 1 . . . . . . . . . Scrap Searched 1 | . . 1 . . . . . . . . . . . . Spaces Dug . | . . . . . . . . . . . . . . . Terrain Destroyed 12 | . . . . . . . . . . . . . . 12 Melee . | . . . . . . . . . . . . . . . Projectile . | . . . . . . . . . . . . . . . AOE 12 | . . . . . . . . . . . . . . 12 Terrain Rammed . | . . . . . . . . . . . . . . . Walls Destroyed . | . . . . . . . . . . . . . . . Machines Disabled . | . . . . . . . . . . . . . . . Actions | -11 -10 -10 -10 -9 -8 -7 -6 -5 -4 -4 -3 -2 -2 -1 --------- Run | Yrd Mat Min Exi Min Mat Fac Fac Fac Fac DSF Res Res DSF Acc Total 5189 | 24 68 72 153 74 229 937 573 386 24 73 709 186 118 1563 Wait 33 | 1 . . . . . 10 7 . . . . . 5 10 Move 4941 | 22 65 72 153 73 205 903 554 380 24 59 656 181 100 1494 Hop 84 | . 2 . . 1 10 8 7 5 . 1 17 1 . 32 Pick Up 16 | . . . . . 1 4 . 1 . . 4 . 5 1 Fast Attach 46 | 1 1 . . . 11 6 3 . . . 7 1 3 13 Attach 15 | . . . . . . 3 . . . . 6 1 1 4 Detach 7 | . . . . . . 1 2 . . . 2 . . 2 Swap 7 | . . . . . 1 . . . . . 2 1 . 3 Drop 10 | . . . . . . 1 . . . . 3 . 4 2 Fire 1 | . . . . . . 1 . . . . . . . . Melee 3 | . . . . . . . . . . . . 1 . 2 Ram 1 | . . . . . 1 . . . . . . . . . Kick . | . . . . . . . . . . . . . . . Crush . | . . . . . . . . . . . . . . . Escape Stasis 25 | . . . . . . . . . . 13 12 . . . Rewire . | . . . . . . . . . . . . . . . Trap . | . . . . . . . . . . . . . . . Miscellaneous . | . . . . . . . . . . . . . . . Route ------- -11/Scrapyard -10/Materials -10/Mines -10/Exiles -9/Mines -8/Materials -7/Factory -6/Factory -5/Factory (discovered 2 exits: *Fac / *Upp) -4/Factory -4/DSF -3/Research (discovered 2 exits: *Res / *Arm) -2/Research -2/DSF -1/Access To Epsilon Eridani History --------- Turn | Location | Event 7 | -11/Scrapyard | Discovered new exit (range 15) 15 | -11/Scrapyard | Entered Materials 42 | -10/Materials | Discovered new exit (range 8) 45 | -10/Materials | Entered Mines 72 | -10/Mines | Deemed a non-threat by the Exiles lab entrance 73 | -10/Mines | Discovered new exit (range 5) 74 | -10/Mines | Entered Exiles 85 | -10/Exiles | Met 8R-AWN 91 | -10/Exiles | Met EX-HEX 102 | -10/Exiles | Met EX-BIN 107 | -10/Exiles | Aligned with FarCom system 107 | -10/Exiles | Given EX-Vault access code 118 | -10/Exiles | Met EX-DEC 132 | -10/Exiles | Discovered new exit (range 11) 136 | -10/Exiles | Entered Mines 137 | -9/Mines | Assembled infested the area 142 | -9/Mines | Assisted by a Guerilla fighting off Assembled 162 | -9/Mines | Discovered new exit (range 7) 167 | -9/Mines | Entered Materials 167 | -8/Materials | Evolved 4 slots: Propulsion x2, Utility x2 247 | -8/Materials | Core integrity fell below 50% 252 | -8/Materials | Lost 3 parts (2n1u) 268 | -8/Materials | Discovered new exit (range 15) 273 | -8/Materials | Entered Factory 273 | -7/Factory | Evolved 2 slots: Propulsion x1, Utility x1 594 | -7/Factory | Discovered new exit (range 16) 598 | -7/Factory | Identified exit to Factory 599 | -7/Factory | Entered another Factory area 599 | -6/Factory | Evolved 2 slots: Propulsion x1, Utility x1 603 | -6/Factory | Build established: Scout 785 | -6/Factory | Discovered new exit (range 4) 785 | -6/Factory | Identified exit to Factory 786 | -6/Factory | Entered another Factory area 786 | -5/Factory | Evolved 2 slots: Power x1, Propulsion x1 888 | -5/Factory | Discovered new exit (range 8) 890 | -5/Factory | Identified exit to Upper Caves 902 | -5/Factory | Discovered new exit (range 10) 904 | -5/Factory | Identified exit to Factory 905 | -5/Factory | Entered another Factory area 905 | -4/Factory | Evolved 2 slots: Propulsion x1, Utility x1 912 | -4/Factory | Identified exit to DSF 913 | -4/Factory | Entered DSF 933 | -4/DSF | Additional patrols routed to DSF 942 | -4/DSF | Discovered new exit (range 15) 946 | -4/DSF | Identified exit to Research 946 | -4/DSF | Entered Research 946 | -3/Research | Evolved 2 slots: Utility x2 971 | -3/Research | Lost 4 parts (1p2n1u) 1192 | -3/Research | Discovered new exit (range 9) 1195 | -3/Research | Identified exit to Armory 1203 | -3/Research | Discovered new exit (range 7) 1204 | -3/Research | Identified exit to Research 1207 | -3/Research | Entered another Research area 1207 | -2/Research | Evolved 2 slots: Propulsion x2 1252 | -2/Research | Identified exit to DSF 1252 | -2/Research | Entered DSF 1275 | -2/DSF | Additional patrols routed to DSF 1275 | -2/DSF | Discovered new exit (range 16) 1292 | -2/DSF | Identified exit to Access 1292 | -2/DSF | Entered Access 1292 | -1/Access | Evolved 2 slots: Propulsion x2 1307 | -1/Access | Lost 4 parts (1p1n1u1w) 1355 | -1/Access | Spotted B-99 Colossus 1401 | -1/Access | Build established: Hacker-Sprinter 1420 | -1/Access | Lost 3 parts (1n2u) 1444 | -1/Access | Found Prototype Hackware 1444 | -1/Access | Identified Exp. System Shield 1499 | -1/Access | Lost 3 parts (1p1n1w) 1627 | -1/Access | Spotted B-99 Colossus 1688 | -1/Access | Lost 10 parts (3p4n3u) 1694 | -1/Access | Energy Cycler disabled 1720 | -1/Access | Discovered new exit (range 6) 1721 | *** | Escaped! Last Messages --------------- local area. 01698_ K-01 Serf collects debris. 01714_ Penetrated by Slug. 01714_ K-01 Serf suffers critical hit (Destroy). 01714_ K-01 Serf destroyed. 01714_ Slug penetrates Wall. 01715_ ALERT: Potential suspicious activity detected, Programmers report to Access Zone 7U. 01716_ Slug penetrates Wall. 01716_ Impulse Thruster Array destroyed. 01716_ Knocked back. 01716_ Field Propulsion Array destroyed. 01720_ The Access Shell folds into the floor. 01720_ EXIT=FOUND 01720_ Imp. Diametric Drive destroyed. [Achievement: Pacifist] [Achievement: Speedrunner] [Achievement: True Flier] [Achievement: Engineer's Best Friend] [Achievement: Travel Light] Map ----- +----------------------------------------------------+ | #????????????######## ###/##########" | | ####??#??????##???#???# # ##?##!! | | #??##???? ?? ???? ????# # #???#! | | ? #???????????? ????# # " #???# | | #? ?????????? ????# # """ #?#?# ! | | #??? ?????????????# # """ ##### | | #?? ?????????"????+ # " / | | #??? ? ?? ?? ????# # #### | | #?? ? ???? ? ? ? ?# # ##?#### "# | | ############???#????#?# ###########?#?#?# ##!= | | """T""" =#?????#???? ??????????????#?#####%! | | #?????????? ????#????????#??#???#!* | | ! #???##?#???? ????????????????????#=% | | [ [*#?????????????? ?????????#######?##?# | | * #???????#?BB ???BB?#???? ?? ?# | | #####+######???#???? BB????BB?????? ! ???# | | #######????? ???????????#?# ???# | | #??#????????????#???# ??# | | ##### #???????????"???????# ??# | | #####+#+#???# #???#????"""?"?????## ?# | | #??? ? ? ?## #??#?#""""""""""#???# ?# | | #? ? ? ????#w#???## #???# # | | ???? ? ??## #??### #???# # | | ???????"? ?## #??#?# #?#?# + | | ?? ?"?????# #?#??# "" ##?## # | | ?# ???" ? ?# #????# "@ #???# # | | ?? ? ??? ??## #????# ###?############## | | ?????? ???## #???## #????# ####### | | ???#???#????#%##?#?# #????# g | | ??# ??? ?? ?#Y##??## ##???# h g | | ????????? ??# ##### ##?## p####### ! | | ???? ??????# #???##"" ##??### ###??#?## | | ?#? ?? ????# #????#"" #??#??#g #???????# | | ?? ????? ??# #????#"" #??#??# #???????# | | ???????? ???# ####?#T #?#???# #???????# | | ??? ????? ? # ####?#"" #???#?# #???????# | | ????? ? ?# #?#?##"" #?????# h#??????## | | ?#???##+##### ######"" p#######g #???#???# | | hg% h g ggp #???????? | | g g p #???????? | | ?###+#########+#########################???????? | | ?????? #???? ??#?#?#?????????#??#?#? ?? ?? | | ????????#? ???????##??#??#??#??##? ??? ????? | | ????????? """??##????????##?##?#?????????????? | | ???????## """?#????#????????#??#?????????????? | | ????????# R"##???#????#?????????????????????? | | ????????# """??????#???????#??#??????????????? | | ????????# ""???????#??????#????????? ????????? | | ????????# !] ??????????##?????????#???? ?? ?????? | | ????????# !] ????###???#????????????????????????? | +----------------------------------------------------+ Best States ------------- Heat Dissipation 68 Energy Generation 49 Energy Capacity 600 Matter Stores 300 Matter Capacity 300 Sight Range 16 Robot Scan Range 15 Terrain Scan Range 16 Terrain Scan Density 810 ECM Strength 2 Jamming Range 16 Cloak Strength 4 Armor Coverage 225 Resistance: KI 20 Propulsion Shielding 66 Evasion (%) 65 Offensive Hacking 10 Defensive Hacking 26 Item Schematics ----------------- None Robot Schematics ------------------ None Fabricated ------------ Nothing Repaired ---------- Nothing Studied --------- None Alien Tech Used ----------------- None Achievements -------------- Engineer's Best Friend Pacifist Speedrunner Travel Light True Flier Challenges ------------ None Game ------ Seed DeliveryModifiedDoomcannon Manual? 0 Play Time 00:34:22 Cumulative 1108.8 hours Start 2026.01.24 @ 14:00:31 End 2026.01.24 @ 14:33:13 Sessions 1 Manual Loads 0 Difficulty Rogue Special Mode None Game No. 336 Rogue 334 Adventurer 2 Explorer 0 Win Type 0 Total 82 Types 22/19/19/1/1/1/14/2/1/2 Lore% 97 Gallery% 95 Achievement% 86 Wizard Run 0 Options --------- Layout 0 ASCII 0 Keyboard 1 Movement Numpad Keybinds 0 Fullscreen 1 Font 24/Smallcaps Map View 76x50 Zoom Use 0% Tactical HUD 1 Map Filters NONE Filters NONE Steam 1 RUN: ab6c10b5-a4b2-4196-8fe3-45238f5bd8e9